[Event "*** Titled Tuesday Blitz"]
[Site "Chess.com"]
[Date "2019.05.07"]
[Round "6"]
[White "SantoBlue"]
[Black "vovachesss"]
[Result "0-1"]
[WhiteElo "2762"]
[BlackElo "2538"]
[TimeControl "180+2"]
[EndTime "14:25:19 PDT"]
[Termination "vovachesss won by resignation"]

1. e4 {[%clk 0:03:01.9]} 1... c5 {[%clk 0:03:01]} 2. Nf3 {[%clk 0:03:03.6]} 2...
a6 {[%clk 0:03:01.6]} 3. c3 {[%clk 0:03:04.6]} 3... e6 {[%clk 0:03:01.9]} 4. d4
{[%clk 0:03:06.1]} 4... cxd4 {[%clk 0:03:02.9]} 5. cxd4 {[%clk 0:03:08]} 5... d5
{[%clk 0:03:04.2]} 6. e5 {[%clk 0:03:09.7]} 6... Ne7 {[%clk 0:03:02.1]} 7. Bd3
{[%clk 0:03:10.8]} 7... Nf5 {[%clk 0:03:01.2]} 8. Nc3 {[%clk 0:03:11.9]} 8...
Nc6 {[%clk 0:03:02.3]} 9. Bxf5 {[%clk 0:03:11.3]} 9... exf5 {[%clk 0:03:04.2]}
10. O-O {[%clk 0:03:13]} 10... Be7 {[%clk 0:03:04.5]} 11. Qb3 {[%clk 0:03:14.6]}
11... Be6 {[%clk 0:02:57.9]} 12. Ne2 {[%clk 0:03:12.6]} 12... O-O {[%clk
0:02:56.1]} 13. Bd2 {[%clk 0:03:14.2]} 13... b5 {[%clk 0:02:55]} 14. Rac1 {[%clk
0:03:14.6]} 14... Qb6 {[%clk 0:02:56.1]} 15. Qd3 {[%clk 0:03:12.4]} 15... Rac8
{[%clk 0:02:55.2]} 16. Ng3 {[%clk 0:03:13.7]} 16... g6 {[%clk 0:02:52.6]} 17. a3
{[%clk 0:03:13.6]} 17... Rc7 {[%clk 0:02:51.3]} 18. h4 {[%clk 0:03:11.1]} 18...
Rfc8 {[%clk 0:02:45.9]} 19. h5 {[%clk 0:03:12.4]} 19... b4 {[%clk 0:02:43.8]}
20. a4 {[%clk 0:03:11.2]} 20... Kg7 {[%clk 0:01:41.4]} 21. h6+ {[%clk
0:03:12.1]} 21... Kg8 {[%clk 0:01:42.3]} 22. b3 {[%clk 0:03:12.9]} 22... f6
{[%clk 0:01:26.4]} 23. Rce1 {[%clk 0:03:12.1]} 23... fxe5 {[%clk 0:01:25.4]} 24.
Nxe5 {[%clk 0:03:09.5]} 24... Qxd4 {[%clk 0:01:22.4]} 25. Qxa6 {[%clk
0:03:00.8]} 25... Qxd2 {[%clk 0:01:08.8]} 26. Nf3 {[%clk 0:03:02.1]} 26... Qc2
{[%clk 0:00:33.5]} 27. Rxe6 {[%clk 0:03:03]} 27... Qxb3 {[%clk 0:00:34.7]} 28.
Rc1 {[%clk 0:02:56.5]} 28... Bf8 {[%clk 0:00:24.5]} 29. Rexc6 {[%clk 0:02:53.9]}
29... Rxc6 {[%clk 0:00:19.9]} 30. Rxc6 {[%clk 0:02:55.8]} 30... Rxc6 {[%clk
0:00:15.3]} 31. Qxc6 {[%clk 0:02:57.7]} 31... d4 {[%clk 0:00:10.4]} 32. Qd7
{[%clk 0:02:54.1]} 32... Bxh6 {[%clk 0:00:10.6]} 33. Qd8+ {[%clk 0:02:54.5]}
33... Kg7 {[%clk 0:00:11.4]} 34. Qxd4+ {[%clk 0:02:56]} 34... Kg8 {[%clk
0:00:12.3]} 35. Qd8+ {[%clk 0:02:57.5]} 35... Kg7 {[%clk 0:00:13.1]} 36. Qd7+
{[%clk 0:02:59.1]} 36... Kg8 {[%clk 0:00:13.2]} 37. Qe8+ {[%clk 0:03:00.7]}
37... Kg7 {[%clk 0:00:14.1]} 38. Ne5 {[%clk 0:03:02.4]} 38... Qd5 {[%clk
0:00:08.3]} 39. Qe7+ {[%clk 0:03:02.9]} 39... Kg8 {[%clk 0:00:08.6]} 40. Nd7
{[%clk 0:03:04.6]} 40... Qf7 {[%clk 0:00:03.1]} 41. Qd8+ {[%clk 0:03:05.5]}
41... Kg7 {[%clk 0:00:04.5]} 42. Ne5 {[%clk 0:03:06.7]} 42... Qf6 {[%clk
0:00:05.6]} 43. Qd7+ {[%clk 0:03:08.1]} 43... Kg8 {[%clk 0:00:07.3]} 44. Qe8+
{[%clk 0:03:09.5]} 44... Bf8 {[%clk 0:00:08.7]} 45. Nd7 {[%clk 0:03:10.8]} 45...
Qe7 {[%clk 0:00:10.3]} 46. Qc8 {[%clk 0:03:11.8]} 46... b3 {[%clk 0:00:11]} 47.
Qc4+ {[%clk 0:03:13.1]} 47... Qf7 {[%clk 0:00:12.4]} 48. Qb5 {[%clk 0:03:03.2]}
48... b2 {[%clk 0:00:13.7]} 49. Ne5 {[%clk 0:03:04.3]} 49... Qa2 {[%clk
0:00:14.7]} 50. Qd7 {[%clk 0:03:01.5]} 50... b1=Q+ {[%clk 0:00:15.4]} 51. Kh2
{[%clk 0:03:03.4]} 51... Qb8 {[%clk 0:00:14.4]} 52. Nc6 {[%clk 0:02:57.4]} 52...
Qd6 {[%clk 0:00:15.3]} 53. Qc8 {[%clk 0:02:56.7]} 53... Qae6 {[%clk 0:00:14]}
0-1

[Event "*** Titled Tuesday Blitz"]
[Site "Chess.com"]
[Date "2019.05.07"]
[Round "6"]
[White "Fins0905"]
[Black "Vamostodorecto"]
[Result "1-0"]
[WhiteElo "2669"]
[BlackElo "2405"]
[TimeControl "180+2"]
[EndTime "14:25:28 PDT"]
[Termination "Fins0905 won by resignation"]

1. d4 {[%clk 0:03:01.9]} 1... Nf6 {[%clk 0:02:59.7]} 2. c4 {[%clk 0:03:02.6]}
2... g6 {[%clk 0:03:01.2]} 3. Nc3 {[%clk 0:03:03.6]} 3... d5 {[%clk 0:03:02.8]}
4. cxd5 {[%clk 0:03:02.5]} 4... Nxd5 {[%clk 0:03:04.7]} 5. Bd2 {[%clk
0:03:02.6]} 5... Bg7 {[%clk 0:03:04.3]} 6. e4 {[%clk 0:03:03.4]} 6... Nxc3
{[%clk 0:03:05.7]} 7. Bxc3 {[%clk 0:03:05.3]} 7... c5 {[%clk 0:03:07]} 8. d5
{[%clk 0:03:06.4]} 8... Bxc3+ {[%clk 0:03:08.6]} 9. bxc3 {[%clk 0:03:08.3]} 9...
O-O {[%clk 0:03:07.2]} 10. Nf3 {[%clk 0:03:09.2]} 10... Bg4 {[%clk 0:03:05.2]}
11. Be2 {[%clk 0:03:09.6]} 11... Bxf3 {[%clk 0:03:00]} 12. Bxf3 {[%clk
0:03:09.7]} 12... Qd6 {[%clk 0:03:01.6]} 13. O-O {[%clk 0:03:09.3]} 13... Nd7
{[%clk 0:03:01.7]} 14. g3 {[%clk 0:03:06.1]} 14... b6 {[%clk 0:02:59.8]} 15. Bg2
{[%clk 0:03:01.9]} 15... e5 {[%clk 0:02:48.6]} 16. f4 {[%clk 0:02:53.9]} 16...
c4 {[%clk 0:02:38.7]} 17. Qg4 {[%clk 0:02:40.5]} 17... Rac8 {[%clk 0:02:25.4]}
18. Kh1 {[%clk 0:02:27.7]} 18... Rc7 {[%clk 0:02:23.6]} 19. f5 {[%clk
0:02:15.1]} 19... Kg7 {[%clk 0:02:06.6]} 20. Rf2 {[%clk 0:02:01.8]} 20... Nc5
{[%clk 0:01:33.2]} 21. f6+ {[%clk 0:01:44.2]} 21... Kh8 {[%clk 0:01:30.6]} 22.
Qg5 {[%clk 0:01:44.9]} 22... Nd3 {[%clk 0:01:26.8]} 23. Rf3 {[%clk 0:01:40.2]}
23... Rg8 {[%clk 0:01:20.8]} 24. Raf1 {[%clk 0:01:36.6]} 24... b5 {[%clk
0:00:20.1]} 25. g4 {[%clk 0:01:35.9]} 25... Nf4 {[%clk 0:00:21]} 26. Rxf4 {[%clk
0:01:35.5]} 26... exf4 {[%clk 0:00:22.9]} 27. e5 {[%clk 0:01:37.1]} 27... Qa3
{[%clk 0:00:17.1]} 28. Qxf4 {[%clk 0:01:33.8]} 28... Qxc3 {[%clk 0:00:16.9]} 29.
e6 {[%clk 0:01:35.3]} 29... Qa5 {[%clk 0:00:07.8]} 30. d6 {[%clk 0:01:33.2]}
30... Rc5 {[%clk 0:00:05.6]} 31. e7 {[%clk 0:01:31.9]} 31... b4 {[%clk
0:00:04.2]} 32. d7 {[%clk 0:01:32.5]} 32... Rd5 {[%clk 0:00:02.9]} 33. e8=Q
{[%clk 0:01:31.1]} 1-0

[Event "*** Titled Tuesday Blitz"]
[Site "Chess.com"]
[Date "2019.05.07"]
[Round "6"]
[White "adriangschnitzer"]
[Black "slowdumbb"]
[Result "1/2-1/2"]
[WhiteElo "2417"]
[BlackElo "2537"]
[TimeControl "180+2"]
[EndTime "14:25:35 PDT"]
[Termination "Game drawn by agreement"]

1. e4 {[%clk 0:03:01.9]} 1... c5 {[%clk 0:02:58.3]} 2. Nf3 {[%clk 0:03:02.6]}
2... Nc6 {[%clk 0:02:58.8]} 3. d4 {[%clk 0:03:03.9]} 3... cxd4 {[%clk 0:03:00]}
4. Nxd4 {[%clk 0:03:05.8]} 4... e5 {[%clk 0:03:01.6]} 5. Nb5 {[%clk 0:03:06.3]}
5... a6 {[%clk 0:03:02.8]} 6. Nd6+ {[%clk 0:03:06.8]} 6... Bxd6 {[%clk
0:03:04.4]} 7. Qxd6 {[%clk 0:03:08.6]} 7... Qe7 {[%clk 0:03:06.1]} 8. Qxe7+
{[%clk 0:03:05]} 8... Ngxe7 {[%clk 0:03:08]} 9. Nc3 {[%clk 0:03:06.4]} 9... d5
{[%clk 0:03:09.3]} 10. exd5 {[%clk 0:03:02.5]} 10... Nb4 {[%clk 0:03:09.9]} 11.
Bd3 {[%clk 0:03:03.9]} 11... Nxd3+ {[%clk 0:03:10]} 12. cxd3 {[%clk 0:03:05.8]}
12... Bf5 {[%clk 0:03:11.4]} 13. Be3 {[%clk 0:02:57.8]} 13... O-O-O {[%clk
0:03:08.2]} 14. O-O-O {[%clk 0:02:46.2]} 14... Nxd5 {[%clk 0:03:08.1]} 15. Nxd5
{[%clk 0:02:44]} 15... Rxd5 {[%clk 0:03:10]} 16. d4 {[%clk 0:02:44.3]} 16... Kb8
{[%clk 0:03:01.2]} 17. Rd2 {[%clk 0:02:27.8]} 17... Rc8+ {[%clk 0:02:51.4]} 18.
Kd1 {[%clk 0:02:28.7]} 18... exd4 {[%clk 0:02:49.6]} 19. Bxd4 {[%clk 0:02:21.5]}
19... Rcd8 {[%clk 0:02:38.7]} 20. Be3 {[%clk 0:02:09.7]} 20... Bb1 {[%clk
0:02:36.3]} 21. a3 {[%clk 0:02:05]} 21... Ba2 {[%clk 0:02:30.9]} 22. Rxd5 {[%clk
0:01:58]} 22... Bxd5 {[%clk 0:02:31.2]} 23. Ke2 {[%clk 0:01:46.8]} 23... Bxg2
{[%clk 0:02:22.4]} 24. Rg1 {[%clk 0:01:47.6]} 24... Be4 {[%clk 0:02:23.4]} 25.
Rxg7 {[%clk 0:01:45.6]} 25... Bd3+ {[%clk 0:02:19.6]} 26. Kf3 {[%clk 0:01:38.5]}
26... Bg6 {[%clk 0:02:21.5]} 27. h4 {[%clk 0:01:37.6]} 27... Kc7 {[%clk
0:02:13.7]} 28. Kg3 {[%clk 0:01:33.1]} 28... h5 {[%clk 0:02:12.3]} 29. f4 {[%clk
0:01:28.1]} 29... Rd5 {[%clk 0:01:52.5]} 30. Rg8 {[%clk 0:01:26]} 30... Kc6
{[%clk 0:01:52.5]} 31. Rc8+ {[%clk 0:01:26.1]} 31... Kd7 {[%clk 0:01:42.8]} 32.
Rc5 {[%clk 0:01:22.2]} 32... Rd3 {[%clk 0:01:16.9]} 33. Kf2 {[%clk 0:01:22]}
33... Ke6 {[%clk 0:01:10.3]} 34. Re5+ {[%clk 0:01:12.3]} 34... Kf6 {[%clk
0:01:04.4]} 35. Ke2 {[%clk 0:00:49.7]} 1/2-1/2

[Event "*** Titled Tuesday Blitz"]
[Site "Chess.com"]
[Date "2019.05.07"]
[Round "6"]
[White "NateSolon"]
[Black "NemtsevIgor"]
[Result "1-0"]
[WhiteElo "2499"]
[BlackElo "2254"]
[TimeControl "180+2"]
[EndTime "14:25:52 PDT"]
[Termination "NateSolon won by checkmate"]

1. d4 {[%clk 0:03:01.9]} 1... c6 {[%clk 0:03:00.5]} 2. Nf3 {[%clk 0:03:01.8]}
2... h6 {[%clk 0:03:01.1]} 3. e4 {[%clk 0:03:02.2]} 3... d5 {[%clk 0:03:01.8]}
4. Nc3 {[%clk 0:03:02.8]} 4... Nf6 {[%clk 0:03:01.8]} 5. e5 {[%clk 0:03:03.2]}
5... Ne4 {[%clk 0:03:03]} 6. Bd3 {[%clk 0:03:01]} 6... Bf5 {[%clk 0:03:04]} 7.
Qe2 {[%clk 0:02:58.5]} 7... Nxc3 {[%clk 0:03:04.4]} 8. bxc3 {[%clk 0:02:59.4]}
8... Bxd3 {[%clk 0:03:05.6]} 9. cxd3 {[%clk 0:03:01.3]} 9... e6 {[%clk
0:03:06.8]} 10. O-O {[%clk 0:02:57.4]} 10... Be7 {[%clk 0:03:07.4]} 11. Nd2
{[%clk 0:02:51.4]} 11... O-O {[%clk 0:03:06.2]} 12. f4 {[%clk 0:02:52.4]} 12...
c5 {[%clk 0:03:03.2]} 13. dxc5 {[%clk 0:02:52.9]} 13... Bxc5+ {[%clk 0:03:02]}
14. d4 {[%clk 0:02:54.2]} 14... Be7 {[%clk 0:02:59.2]} 15. f5 {[%clk 0:02:55.5]}
15... Bg5 {[%clk 0:02:58.3]} 16. Qg4 {[%clk 0:02:17.4]} 16... exf5 {[%clk
0:02:51.6]} 17. Rxf5 {[%clk 0:02:18]} 17... Nc6 {[%clk 0:02:47.2]} 18. Nf3
{[%clk 0:02:13]} 18... Bxc1 {[%clk 0:02:46]} 19. Rxc1 {[%clk 0:02:14.9]} 19...
Ne7 {[%clk 0:02:45.5]} 20. Rh5 {[%clk 0:02:14.8]} 20... Ng6 {[%clk 0:02:28.5]}
21. e6 {[%clk 0:02:11.6]} 21... Qf6 {[%clk 0:02:29.6]} 22. Re1 {[%clk
0:02:02.4]} 22... Qf4 {[%clk 0:01:35.1]} 23. exf7+ {[%clk 0:01:43.1]} 23... Qxf7
{[%clk 0:01:35.5]} 24. Rf1 {[%clk 0:01:02.8]} 24... Nf4 {[%clk 0:01:19.2]} 25.
Rxh6 {[%clk 0:01:00.6]} 25... Rae8 {[%clk 0:01:04.2]} 26. Rh7 {[%clk 0:00:45.2]}
26... Ne2+ {[%clk 0:00:47.2]} 27. Kh1 {[%clk 0:00:46.1]} 27... Re4 {[%clk
0:00:33.7]} 28. Qh3 {[%clk 0:00:44.1]} 28... Qf4 {[%clk 0:00:25.7]} 29. Rh8+
{[%clk 0:00:43.7]} 29... Kf7 {[%clk 0:00:26.8]} 30. Ng5+ {[%clk 0:00:35.5]}
30... Kg6 {[%clk 0:00:23.1]} 31. Qh5+ {[%clk 0:00:32.8]} 31... Kf5 {[%clk
0:00:24.3]} 32. Rxf8# {[%clk 0:00:33.4]} 1-0

[Event "*** Titled Tuesday Blitz"]
[Site "Chess.com"]
[Date "2019.05.07"]
[Round "6"]
[White "WeAintSurePal"]
[Black "Zarikovs1999"]
[Result "1-0"]
[WhiteElo "2242"]
[BlackElo "2546"]
[TimeControl "180+2"]
[EndTime "14:25:56 PDT"]
[Termination "WeAintSurePal won by resignation"]

1. d4 {[%clk 0:03:01.9]} 1... Nf6 {[%clk 0:03:00.4]} 2. Nf3 {[%clk 0:02:59.1]}
2... c5 {[%clk 0:03:00.9]} 3. c3 {[%clk 0:02:57.4]} 3... g6 {[%clk 0:03:01.8]}
4. Bg5 {[%clk 0:02:56.2]} 4... Bg7 {[%clk 0:03:02.2]} 5. e3 {[%clk 0:02:57]}
5... O-O {[%clk 0:03:03.4]} 6. Nbd2 {[%clk 0:02:57.3]} 6... b6 {[%clk
0:03:04.3]} 7. Be2 {[%clk 0:02:58]} 7... Bb7 {[%clk 0:03:05.8]} 8. O-O {[%clk
0:02:59.5]} 8... d6 {[%clk 0:03:07.3]} 9. a4 {[%clk 0:02:59.8]} 9... a6 {[%clk
0:03:08.2]} 10. Qb3 {[%clk 0:03:00.1]} 10... Qc7 {[%clk 0:03:06.2]} 11. h3
{[%clk 0:03:00.8]} 11... Nc6 {[%clk 0:03:03.9]} 12. Rfe1 {[%clk 0:03:02]} 12...
Rfe8 {[%clk 0:03:00.9]} 13. Bxf6 {[%clk 0:02:48.6]} 13... Bxf6 {[%clk 0:03:00]}
14. Nc4 {[%clk 0:02:50.1]} 14... Rab8 {[%clk 0:02:34.1]} 15. Qxb6 {[%clk
0:02:48.7]} 15... Qd7 {[%clk 0:02:34.9]} 16. d5 {[%clk 0:02:32.6]} 16... Nd8
{[%clk 0:02:02.6]} 17. Qa7 {[%clk 0:02:32.9]} 17... Ra8 {[%clk 0:01:00.2]} 18.
Nb6 {[%clk 0:02:33.2]} 18... Rxa7 {[%clk 0:00:58.7]} 19. Nxd7 {[%clk 0:02:34]}
19... Bg7 {[%clk 0:00:54.2]} 20. Nb6 {[%clk 0:02:33.8]} 20... e5 {[%clk
0:00:07.7]} 21. e4 {[%clk 0:02:31.3]} 21... f5 {[%clk 0:00:06]} 22. Bd3 {[%clk
0:02:29.5]} 22... fxe4 {[%clk 0:00:05]} 23. Bxe4 {[%clk 0:02:31.4]} 23... Nf7
{[%clk 0:00:06.5]} 24. b4 {[%clk 0:02:25.1]} 24... cxb4 {[%clk 0:00:06.1]} 25.
cxb4 {[%clk 0:02:27]} 25... a5 {[%clk 0:00:08]} 26. b5 {[%clk 0:02:22]} 26...
Bf6 {[%clk 0:00:07.7]} 27. Rac1 {[%clk 0:02:14.1]} 27... Bd8 {[%clk 0:00:07.7]}
28. Nc4 {[%clk 0:02:14.7]} 28... Ra8 {[%clk 0:00:09.2]} 29. Ne3 {[%clk
0:02:09.4]} 29... Bb6 {[%clk 0:00:04.6]} 30. Nc4 {[%clk 0:02:09]} 30... Bc5
{[%clk 0:00:04.8]} 31. Rc2 {[%clk 0:02:06.4]} 31... Kg7 {[%clk 0:00:05.7]} 32.
Rec1 {[%clk 0:02:06]} 32... Rec8 {[%clk 0:00:07.1]} 33. Ncxe5 {[%clk 0:01:59.8]}
33... Bxf2+ {[%clk 0:00:04.8]} 34. Kxf2 {[%clk 0:02:00.1]} 34... Nxe5 {[%clk
0:00:04.2]} 35. Nxe5 {[%clk 0:01:57.9]} 35... dxe5 {[%clk 0:00:05.9]} 36. Rc7+
{[%clk 0:01:57.6]} 36... Kf6 {[%clk 0:00:06.9]} 37. Rxc8 {[%clk 0:01:56.6]}
37... Rxc8 {[%clk 0:00:07.5]} 38. Rxc8 {[%clk 0:01:56.9]} 38... Bxc8 {[%clk
0:00:09.4]} 39. b6 {[%clk 0:01:43.1]} 39... Bb7 {[%clk 0:00:10.4]} 40. Ke3
{[%clk 0:01:43.5]} 40... Ke7 {[%clk 0:00:11.4]} 41. d6+ {[%clk 0:01:44.7]} 1-0

[Event "*** Titled Tuesday Blitz"]
[Site "Chess.com"]
[Date "2019.05.07"]
[Round "6"]
[White "kleinebeer98"]
[Black "Thjop"]
[Result "0-1"]
[WhiteElo "2690"]
[BlackElo "2561"]
[TimeControl "180+2"]
[EndTime "14:25:59 PDT"]
[Termination "Thjop won by checkmate"]

1. e4 {[%clk 0:03:01.9]} 1... e6 {[%clk 0:02:59.9]} 2. d4 {[%clk 0:03:01]} 2...
d5 {[%clk 0:03:01.8]} 3. Bd3 {[%clk 0:03:02.9]} 3... dxe4 {[%clk 0:03:00.5]} 4.
Bxe4 {[%clk 0:03:04.8]} 4... Nf6 {[%clk 0:03:01.6]} 5. Bf3 {[%clk 0:03:06.3]}
5... c5 {[%clk 0:03:02.6]} 6. Ne2 {[%clk 0:03:07.8]} 6... Nc6 {[%clk 0:02:48.5]}
7. Be3 {[%clk 0:03:08.4]} 7... cxd4 {[%clk 0:02:49.4]} 8. Nxd4 {[%clk
0:03:10.3]} 8... Ne5 {[%clk 0:02:49.3]} 9. Nc3 {[%clk 0:03:11.4]} 9... a6 {[%clk
0:02:45.4]} 10. Qe2 {[%clk 0:03:11.4]} 10... Nxf3+ {[%clk 0:02:37.3]} 11. Qxf3
{[%clk 0:03:13.3]} 11... e5 {[%clk 0:02:38.4]} 12. Nf5 {[%clk 0:03:10.9]} 12...
Qa5 {[%clk 0:02:35]} 13. Ng3 {[%clk 0:02:51.3]} 13... Bb4 {[%clk 0:02:22.8]} 14.
O-O {[%clk 0:02:43.4]} 14... Bxc3 {[%clk 0:02:13.3]} 15. bxc3 {[%clk 0:02:45.3]}
15... Qxc3 {[%clk 0:02:08.8]} 16. Rab1 {[%clk 0:02:37.6]} 16... O-O {[%clk
0:02:05]} 17. Rb6 {[%clk 0:02:34.1]} 17... Be6 {[%clk 0:01:38.4]} 18. Qxb7
{[%clk 0:02:16.8]} 18... Qxc2 {[%clk 0:01:36.8]} 19. Rxa6 {[%clk 0:01:52.7]}
19... Rxa6 {[%clk 0:01:22.5]} 20. Qxa6 {[%clk 0:01:54.6]} 20... Qxa2 {[%clk
0:01:22.1]} 21. Qd6 {[%clk 0:01:46.5]} 21... Qd5 {[%clk 0:01:20.8]} 22. Qa3
{[%clk 0:01:44.4]} 22... Ra8 {[%clk 0:01:13.3]} 23. Qb2 {[%clk 0:01:41]} 23...
h5 {[%clk 0:01:11.4]} 24. Bg5 {[%clk 0:01:40.7]} 24... Nh7 {[%clk 0:01:08.4]}
25. Qc1 {[%clk 0:01:12.6]} 25... f6 {[%clk 0:01:01.7]} 26. Be3 {[%clk
0:01:05.5]} 26... h4 {[%clk 0:00:59]} 27. Rd1 {[%clk 0:01:05.3]} 27... Qb7
{[%clk 0:00:55.9]} 28. Nh5 {[%clk 0:01:00.7]} 28... h3 {[%clk 0:00:55]} 29. gxh3
{[%clk 0:00:55.5]} 29... Bxh3 {[%clk 0:00:42.9]} 30. Qc4+ {[%clk 0:00:52.1]}
30... Kh8 {[%clk 0:00:42.6]} 31. Rd5 {[%clk 0:00:34.5]} 31... Qxd5 {[%clk
0:00:31.9]} 32. Qxd5 {[%clk 0:00:25.8]} 32... Ra1+ {[%clk 0:00:31.6]} 33. Qd1
{[%clk 0:00:27.3]} 33... Rxd1# {[%clk 0:00:32.5]} 0-1

[Event "*** Titled Tuesday Blitz"]
[Site "Chess.com"]
[Date "2019.05.07"]
[Round "6"]
[White "dsanchez1973"]
[Black "mjray79"]
[Result "1-0"]
[WhiteElo "2058"]
[BlackElo "2112"]
[TimeControl "180+2"]
[EndTime "14:26:00 PDT"]
[Termination "dsanchez1973 won by checkmate"]

1. e4 {[%clk 0:03:01.9]} 1... e5 {[%clk 0:02:59.9]} 2. Nf3 {[%clk 0:03:03]} 2...
Nc6 {[%clk 0:03:00.7]} 3. d4 {[%clk 0:03:04.6]} 3... exd4 {[%clk 0:03:00.5]} 4.
c3 {[%clk 0:03:06.5]} 4... dxc3 {[%clk 0:02:56.8]} 5. Bc4 {[%clk 0:03:07.4]}
5... h6 {[%clk 0:02:49.4]} 6. O-O {[%clk 0:03:06.8]} 6... Nf6 {[%clk 0:02:49.3]}
7. e5 {[%clk 0:03:06.4]} 7... Nh7 {[%clk 0:02:29.9]} 8. Nxc3 {[%clk 0:03:05.1]}
8... Bb4 {[%clk 0:02:27.5]} 9. Nd5 {[%clk 0:03:05.8]} 9... Bc5 {[%clk
0:02:23.1]} 10. Qe2 {[%clk 0:02:42.9]} 10... O-O {[%clk 0:02:22.6]} 11. Rd1
{[%clk 0:02:43.7]} 11... a6 {[%clk 0:02:15.4]} 12. Bb3 {[%clk 0:02:41.2]} 12...
d6 {[%clk 0:02:13.3]} 13. Bc2 {[%clk 0:02:38.7]} 13... Bg4 {[%clk 0:02:08.5]}
14. Qe4 {[%clk 0:02:38.6]} 14... f5 {[%clk 0:01:39.3]} 15. exf6 {[%clk
0:02:39.6]} 15... Nxf6 {[%clk 0:01:25.5]} 16. Nxf6+ {[%clk 0:02:39.8]} 16...
Qxf6 {[%clk 0:01:24.8]} 17. Qxg4 {[%clk 0:02:33.3]} 17... Nd4 {[%clk 0:01:26.1]}
18. Be4 {[%clk 0:02:24.7]} 18... Rae8 {[%clk 0:01:15.2]} 19. Bd5+ {[%clk
0:02:03.3]} 19... Kh8 {[%clk 0:01:12.8]} 20. Be3 {[%clk 0:02:02.8]} 20... Ne2+
{[%clk 0:00:58.5]} 21. Kh1 {[%clk 0:01:55.6]} 21... Bxe3 {[%clk 0:00:59.2]} 22.
fxe3 {[%clk 0:01:56.6]} 22... Rxe3 {[%clk 0:00:59.8]} 23. Bxb7 {[%clk
0:01:49.7]} 23... Qxb2 {[%clk 0:00:58.2]} 24. Bxa6 {[%clk 0:01:35]} 24... Nc3
{[%clk 0:00:50.6]} 25. Rf1 {[%clk 0:01:30.4]} 25... Ne4 {[%clk 0:00:31.7]} 26.
Qh4 {[%clk 0:01:09.2]} 26... Ra3 {[%clk 0:00:24.9]} 27. Bc4 {[%clk 0:01:06.3]}
27... Nf6 {[%clk 0:00:12.6]} 28. Bb3 {[%clk 0:01:01.6]} 28... Qc3 {[%clk
0:00:10.9]} 29. Rac1 {[%clk 0:00:59.4]} 29... Qa5 {[%clk 0:00:10.2]} 30. Ng5
{[%clk 0:00:55.1]} 30... Nh7 {[%clk 0:00:07.4]} 31. Nxh7 {[%clk 0:00:54.7]}
31... Rxf1+ {[%clk 0:00:07]} 32. Rxf1 {[%clk 0:00:52.5]} 32... Kxh7 {[%clk
0:00:08.3]} 33. Qe4+ {[%clk 0:00:53.1]} 33... g6 {[%clk 0:00:05]} 34. Qe7+
{[%clk 0:00:53.3]} 34... Kh8 {[%clk 0:00:04.8]} 35. Rf8# {[%clk 0:00:55.2]} 1-0

[Event "*** Titled Tuesday Blitz"]
[Site "Chess.com"]
[Date "2019.05.07"]
[Round "6"]
[White "platy3"]
[Black "champ2005"]
[Result "1/2-1/2"]
[WhiteElo "2780"]
[BlackElo "2891"]
[TimeControl "180+2"]
[EndTime "14:26:03 PDT"]
[Termination "Game drawn by repetition"]

1. e4 {[%clk 0:02:58.9]} 1... e5 {[%clk 0:02:57.1]} 2. Nf3 {[%clk 0:03:00]} 2...
Nf6 {[%clk 0:02:58.1]} 3. Nxe5 {[%clk 0:02:59.9]} 3... d6 {[%clk 0:02:59.3]} 4.
Nf3 {[%clk 0:03:01.2]} 4... Nxe4 {[%clk 0:03:00.4]} 5. Nc3 {[%clk 0:03:02.6]}
5... Nxc3 {[%clk 0:03:01.3]} 6. dxc3 {[%clk 0:03:04.5]} 6... Be7 {[%clk
0:03:02.7]} 7. Be3 {[%clk 0:03:06]} 7... O-O {[%clk 0:03:03.8]} 8. Qd2 {[%clk
0:03:07.6]} 8... Nd7 {[%clk 0:03:04.5]} 9. O-O-O {[%clk 0:03:09.2]} 9... Nf6
{[%clk 0:03:05.6]} 10. h3 {[%clk 0:03:07.3]} 10... c5 {[%clk 0:03:02.2]} 11. Kb1
{[%clk 0:03:03.3]} 11... Qa5 {[%clk 0:02:55.3]} 12. c4 {[%clk 0:02:58.7]} 12...
Qxd2 {[%clk 0:02:55.5]} 13. Rxd2 {[%clk 0:02:58.9]} 13... Be6 {[%clk 0:02:53.9]}
14. Be2 {[%clk 0:02:57.5]} 14... d5 {[%clk 0:02:51]} 15. Ng5 {[%clk 0:02:53]}
15... d4 {[%clk 0:02:47.9]} 16. Bf4 {[%clk 0:02:51.8]} 16... Bf5 {[%clk
0:02:45.5]} 17. g4 {[%clk 0:02:48.2]} 17... Bg6 {[%clk 0:02:46.6]} 18. Bd3
{[%clk 0:02:49.4]} 18... Rfe8 {[%clk 0:02:34.6]} 19. Re2 {[%clk 0:02:45.2]}
19... Bf8 {[%clk 0:02:29.6]} 20. Rhe1 {[%clk 0:02:45.7]} 20... h6 {[%clk
0:02:23.4]} 21. Rxe8 {[%clk 0:02:31.4]} 21... Rxe8 {[%clk 0:02:23.7]} 22. Rxe8
{[%clk 0:02:32]} 22... Nxe8 {[%clk 0:02:25.5]} 23. Nf3 {[%clk 0:02:19.9]} 23...
Bxd3 {[%clk 0:02:23.2]} 24. cxd3 {[%clk 0:02:21.8]} 24... f6 {[%clk 0:02:22.5]}
25. Kc1 {[%clk 0:02:12.6]} 25... Bd6 {[%clk 0:02:21.6]} 26. Bxd6 {[%clk
0:02:13.3]} 26... Nxd6 {[%clk 0:02:22.4]} 27. Kd2 {[%clk 0:02:14.9]} 27... g5
{[%clk 0:02:22.2]} 28. Ke2 {[%clk 0:02:09.9]} 28... Kf7 {[%clk 0:02:23.2]} 29.
Nd2 {[%clk 0:02:10]} 29... Ke6 {[%clk 0:02:23]} 30. Kf3 {[%clk 0:02:10.2]} 30...
f5 {[%clk 0:02:14.9]} 31. Kg3 {[%clk 0:02:05.1]} 31... Ke5 {[%clk 0:02:09.5]}
32. Nf3+ {[%clk 0:02:05.1]} 32... Kf6 {[%clk 0:02:10.5]} 33. h4 {[%clk
0:02:00.7]} 33... Nf7 {[%clk 0:02:04.1]} 34. hxg5+ {[%clk 0:01:58]} 34... hxg5
{[%clk 0:02:05.3]} 35. Kh3 {[%clk 0:01:45.2]} 35... Nh6 {[%clk 0:01:58]} 36. Nh2
{[%clk 0:01:45.9]} 36... Nf7 {[%clk 0:01:50.6]} 37. Nf3 {[%clk 0:01:45.8]} 37...
b6 {[%clk 0:01:44]} 38. Kg3 {[%clk 0:01:44]} 38... a6 {[%clk 0:01:22.4]} 39. Kh3
{[%clk 0:01:43.6]} 39... b5 {[%clk 0:01:13.7]} 40. b3 {[%clk 0:01:43.1]} 40...
b4 {[%clk 0:01:08.8]} 41. Kg3 {[%clk 0:01:41.8]} 41... a5 {[%clk 0:00:58.2]} 42.
Kh3 {[%clk 0:01:16.8]} 42... Nh6 {[%clk 0:00:56.9]} 43. Nh2 {[%clk 0:01:16.7]}
43... Nf7 {[%clk 0:00:52.5]} 44. Nf3 {[%clk 0:01:17]} 44... Nh6 {[%clk
0:00:53.5]} 45. Nh2 {[%clk 0:01:17.4]} 45... Nf7 {[%clk 0:00:54.6]} 46. Nf3
{[%clk 0:01:00.5]} 1/2-1/2